bitfinex-derivatives/quotes_BTCF0:USTF0_20251210
["timestamp","ask_amount","ask_price","bid_price","bid_amount"]
[1765398146319,0.3608,93713.0,93710.0,0.01082923]
[1765398146721,0.3608,93721.0,93710.0,0.01082923]
[1765398147012,0.00016003,93728.0,93725.0,0.0106675]
[1765398147526,0.0106677,93724.0,93716.0,0.0106685]
[1765398147730,0.0106676,93725.0,93719.0,0.0106681]
[1765398148026,0.3608,93722.0,93710.0,0.00116003]
[1765398148234,0.0106691,93711.0,93710.0,0.00116003]
[1765398148439,0.3714691,93712.0,93710.0,0.00116003]
[1765398148726,0.3608,93712.0,93710.0,0.00116003]
[1765398149115,0.3714691,93712.0,93710.0,0.00116003]
[1765398149523,0.3608,93712.0,93710.0,0.00116003]
[1765398150127,0.3608,93712.0,93711.0,0.0106691]
[1765398150427,0.3608,93722.0,93717.0,0.0106684]
[1765398150625,0.3608,93722.0,93721.0,0.010668]
[1765398150826,0.3608,93722.0,93717.0,0.0106684]
[1765398151225,0.3608,93722.0,93716.0,0.001]
[1765398151226,0.0106684,93717.0,93716.0,0.001]
[1765398151431,0.7216,93722.0,93716.0,0.001]
[1765398151635,0.0106684,93717.0,93716.0,0.001]
[1765398152133,0.7216,93722.0,93710.0,0.00016003]
[1765398152134,0.0106691,93711.0,93710.0,0.00016003]
[1765398152332,0.3714691,93711.0,93710.0,0.00116003]
[1765398152538,0.3714691,93711.0,93596.0,0.12775581]
[1765398152539,0.3608,93702.0,93596.0,0.12775581]
[1765398152829,0.00099999,93580.0,93568.0,0.23735944]
[1765398153134,0.00099999,93580.0,93524.0,0.0534521]
[1765398153135,0.010688,93546.0,93532.0,0.07397576]
[1765398153431,0.010688,93546.0,93485.0,0.18462124]
[1765398153432,0.00099999,93520.0,93460.0,0.0534887]
[1765398153632,0.00099999,93500.0,93474.0,0.07397576]
[1765398153825,0.03524,93519.0,93392.0,0.0535276]
[1765398153826,0.00099999,93460.0,93392.0,0.0535276]
[1765398154028,0.37174472,93451.0,93409.0,0.00930067]
[1765398154333,0.00099999,93430.0,93412.0,0.0107032]
[1765398154632,0.00099999,93430.0,93361.0,0.0535458]
[1765398154633,0.13226002,93442.0,93429.0,0.05637583]
[1765398154833,0.13226002,93442.0,93409.0,0.0107035]
[1765398154834,0.00016051,93430.0,93409.0,0.0107035]
[1765398155029,3.59e-06,93416.0,93380.0,0.00099999]
[1765398155328,0.00016051,93430.0,93402.0,0.0107044]
[1765398155329,0.000123,93415.0,93402.0,0.0107044]
[1765398155534,0.000123,93415.0,93355.0,0.00012995]
[1765398155535,0.03181852,93414.0,93391.0,0.1070257]
[1765398155738,0.03181852,93413.0,93371.0,0.0107079]
[1765398155921,0.09517614,93413.0,93393.0,0.00010871]
[1765398156127,0.37174472,93410.0,93393.0,0.00010871]
[1765398156331,0.06335762,93394.0,93393.0,0.00010871]
[1765398156636,0.00010867,93394.0,93357.0,0.0107095]
[1765398156838,0.00010867,93394.0,93355.0,0.00012995]
[1765398156839,0.05449909,93393.0,93391.0,0.001]
[1765398157026,0.05461234,93392.0,93391.0,0.001]
[1765398157228,0.05461234,93392.0,93342.0,0.00010704]
[1765398157229,0.05461234,93392.0,93343.0,0.0107111]
[1765398157532,0.05449909,93391.0,93342.0,0.00010704]
[1765398157837,0.00016061,93377.0,93342.0,0.00010704]
[1765398158035,0.0107076,93375.0,93342.0,0.00010704]
[1765398158240,0.37174472,93360.0,93342.0,0.00010704]
[1765398158539,0.00010085,93359.0,93342.0,0.00010704]
[1765398159035,0.00016061,93377.0,93306.0,0.00021414]
[1765398159036,0.16160388,93358.0,93306.0,0.00021414]
[1765398159239,0.00016071,93346.0,93306.0,0.00021414]
[1765398159431,0.00016071,93346.0,93342.0,0.002]
[1765398159647,0.05449909,93345.0,93342.0,0.002]
[1765398160047,0.05449909,93343.0,93342.0,0.002]
[1765398160256,0.00011266,93344.0,93315.0,0.00407164]
[1765398160551,0.0535236,93400.0,93315.0,0.00407164]
[1765398160552,0.010706,93389.0,93332.0,0.0107124]
[1765398160748,0.0107086,93366.0,93315.0,0.00407164]
[1765398160950,0.0107074,93377.0,93316.0,0.0107143]
[1765398161154,0.37174472,93400.0,93330.0,0.00099999]
[1765398161357,0.0107032,93413.0,93360.0,0.0107092]
[1765398161657,0.08706724,93426.0,93405.0,0.010704]
[1765398161865,0.00016052,93425.0,93406.0,0.00016052]
[1765398162153,0.37174472,93416.0,93342.0,0.003]
[1765398162354,0.37174472,93390.0,93342.0,0.003]
[1765398162555,0.0535186,93409.0,93342.0,0.003]
[1765398162854,0.10704861,93412.0,93350.0,0.0107103]
[1765398163157,0.00016061,93385.0,93316.0,1.5]
[1765398163355,8.971e-05,93323.0,93315.0,0.00107164]
[1765398163757,2.2e-07,93328.0,93315.0,0.00107164]
[1765398163944,0.01071,93354.0,93315.0,0.00107164]
[1765398164255,0.010712,93337.0,93315.0,0.00107164]
[1765398164456,0.07473451,93462.0,93315.0,0.00107164]
[1765398164652,0.0107102,93352.0,93315.0,0.00107164]
[1765398164854,0.00016074,93343.0,93324.0,0.00016074]
[1765398165048,4.388e-05,93342.0,93324.0,0.00016074]
[1765398165258,0.0107115,93341.0,93324.0,0.00016074]
[1765398165446,0.01075528,93342.0,93324.0,0.00016074]
[1765398165647,0.0107125,93332.0,93324.0,0.00016074]
[1765398165862,0.3608,93302.0,93240.0,0.3608]
[1765398166047,0.1816,93258.0,93230.0,0.00099999]
[1765398166250,0.3608,93299.0,93257.0,0.3608]
[1765398166551,0.3608,93318.0,93282.0,0.3608]
[1765398166751,0.0107119,93337.0,93305.0,0.3608]
[1765398167055,0.00016074,93330.0,93324.0,0.3608]
[1765398167244,7.895e-05,93336.0,93314.0,0.3608]
[1765398167449,0.00023969,93336.0,93314.0,0.3608]
[1765398167753,0.00023969,93336.0,93279.0,0.35512]
[1765398167754,0.3608,93327.0,93309.0,0.3608]
[1765398167955,0.00016074,93327.0,93321.0,0.3608]
[1765398168152,0.3608,93326.0,93294.0,0.3608]
[1765398168355,0.3608,93304.0,93279.0,0.1410283]
[1765398168551,0.37174472,93340.0,93279.0,0.1410283]
[1765398168552,0.3608,93282.0,93279.0,0.1410283]
[1765398168852,0.3608,93282.0,93271.0,0.3608]
[1765398169057,0.3608,93282.0,93260.0,0.7794]
[1765398169252,0.3608,93263.0,93260.0,0.7794]
[1765398169452,0.00016084,93271.0,93260.0,0.7794]
[1765398169859,0.00099999,93360.0,93260.0,0.7794]
[1765398169860,0.3608,93308.0,93305.0,0.0107155]
[1765398170158,0.3608,93348.0,93317.0,0.0107141]
[1765398170358,0.3608,93348.0,93284.0,0.0535896]
[1765398170359,0.3608,93348.0,93336.0,0.3608]
[1765398170755,4.878e-05,93347.0,93336.0,0.3608]
[1765398170951,4.878e-05,93347.0,93333.0,0.01087305]
[1765398171157,4.878e-05,93347.0,93333.0,0.00016075]
[1765398171355,0.3608,93341.0,93333.0,0.00016075]
[1765398171561,0.3608,93341.0,93293.0,0.41532]
[1765398171562,0.3608,93338.0,93302.0,0.3608]
[1765398171756,0.3608,93321.0,93302.0,0.3608]
[1765398172061,4.878e-05,93320.0,93316.0,0.0107142]
[1765398172260,4.878e-05,93320.0,93310.0,0.3608]
[1765398172261,4.878e-05,93320.0,93318.0,0.3608]
[1765398172451,4.878e-05,93320.0,93307.0,0.0107152]
[1765398172656,4.878e-05,93320.0,93317.0,0.0107141]
[1765398172860,4.878e-05,93320.0,93319.0,0.3608]
[1765398173466,0.00288878,93321.0,93320.0,0.0107138]
[1765398173663,3e-08,93323.0,93320.0,0.0107138]
[1765398173963,3e-08,93323.0,93316.0,0.0107142]
[1765398174155,3e-08,93323.0,93322.0,0.3608]
[1765398174356,3e-08,93323.0,93314.0,0.0107145]
[1765398174570,3e-08,93323.0,93313.0,0.0107146]
[1765398174760,3e-08,93323.0,93318.0,0.010714]
[1765398175266,3e-08,93323.0,93316.0,0.003]
[1765398175456,0.3608,93317.0,93316.0,0.003]
[1765398175865,0.3608,93317.0,93309.0,0.00016075]
[1765398176371,0.3608,93317.0,93315.0,0.0107144]
[1765398176561,0.3608,93317.0,93314.0,0.0107145]
[1765398177071,0.7608,93317.0,93293.0,0.3608]
[1765398177259,0.3608,93294.0,93275.0,0.010719]
[1765398177461,0.3608,93294.0,93269.0,0.0107196]
[1765398177462,0.3608,93285.0,93269.0,0.0107196]
[1765398177673,0.0107196,93270.0,93251.0,0.3608]
[1765398177970,0.37174472,93280.0,93234.0,0.3608]
[1765398177971,0.7216,93262.0,93234.0,0.3608]
[1765398178168,0.7216,93262.0,93164.0,0.08666833]
[1765398178169,0.3608,93247.0,93226.0,0.3608]
[1765398178360,0.3608,93247.0,93246.0,0.0107223]
[1765398178669,0.3608,93247.0,93232.0,0.0107239]
[1765398178867,0.3608,93247.0,93227.0,0.3608]
[1765398179168,0.00010326,93246.0,93240.0,0.010723]
[1765398179770,0.00010326,93246.0,93243.0,0.0107227]
[1765398180357,0.00016084,93256.0,93255.0,0.0107213]
[1765398180358,4e-08,93256.0,93255.0,0.0107213]
[1765398180562,0.08544851,93319.0,93255.0,0.0107213]
[1765398180563,0.3608,93302.0,93258.0,0.0536047]
[1765398180766,0.31399667,93290.0,93267.0,0.3608]
[1765398181067,0.31399667,93290.0,93220.0,0.32572196]
[1765398181068,0.31399667,93277.0,93243.0,0.3608]
[1765398181269,0.7216,93244.0,93206.0,0.3608]
[1765398181462,0.3608,93224.0,93184.0,0.3608]
[1765398181662,0.3608,93198.0,93196.0,0.0107281]
[1765398181862,0.00016094,93213.0,93197.0,0.3608]
[1765398182179,0.3608,93213.0,93203.0,0.31399667]
[1765398182467,0.07473451,93264.0,93249.0,0.0107219]
[1765398182675,0.07473451,93264.0,93260.0,0.3608]
[1765398182966,0.02737868,93263.0,93235.0,0.3608]
[1765398183272,0.02737868,93263.0,93200.0,0.31399667]
[1765398183273,0.09043608,93243.0,93240.0,0.00016084]
[1765398183471,0.0107234,93237.0,93232.0,0.3608]
[1765398183677,0.07591612,93235.0,93213.0,0.3608]
[1765398183858,0.3608,93231.0,93213.0,0.3608]
[1765398184065,0.0107244,93228.0,93213.0,0.3608]
[1765398184271,0.02737868,93227.0,93224.0,0.3715249]
[1765398184472,0.13226002,93227.0,93226.0,0.3608]
[1765398184769,0.18444519,93243.0,93242.0,0.0107228]
[1765398185070,8e-08,93243.0,93242.0,0.7216]
[1765398185278,9e-08,93275.0,93274.0,0.0107191]
[1765398185459,9e-08,93275.0,93274.0,0.3715191]
[1765398185664,0.3608,93317.0,93304.0,0.0107156]
[1765398185867,0.3608,93325.0,93320.0,0.0107137]
[1765398186176,0.00016071,93332.0,93326.0,0.0107131]
[1765398186575,0.00016071,93332.0,93331.0,0.3608]
[1765398186968,0.3608,93344.0,93322.0,0.3608]
[1765398187271,0.45647107,93360.0,93320.0,0.00016071]
[1765398187272,0.0107086,93366.0,93340.0,0.3608]
[1765398187464,0.3608,93369.0,93351.0,0.3608]
[1765398187665,0.3715082,93369.0,93346.0,0.3608]
[1765398187967,0.0107087,93365.0,93348.0,0.00016071]
[1765398188165,0.3608,93351.0,93319.0,0.02851056]
[1765398188364,0.3608,93335.0,93312.0,0.38931056]
[1765398188675,0.3608,93335.0,93320.0,0.3608]
[1765398189576,0.3608,93327.0,93312.0,0.33247331]
[1765398189771,0.3608,93317.0,93311.0,0.06652464]
[1765398190071,0.3608,93327.0,93311.0,0.0107137]
[1765398190478,0.3608,93319.0,93307.0,0.0107142]
[1765398190777,0.3608,93319.0,93310.0,0.0107138]
[1765398190977,0.3608,93319.0,93304.0,0.00016071]
[1765398191183,0.3608,93325.0,93311.0,0.002]
[1765398191369,0.3608,93325.0,93324.0,0.0107123]
[1765398191676,0.00016071,93337.0,93336.0,0.0107109]
[1765398192575,0.00016071,93337.0,93327.0,0.00016071]
[1765398192576,0.36096071,93337.0,93327.0,0.00016071]
[1765398192779,0.3608,93329.0,93327.0,0.00016071]
[1765398193301,0.00016071,93337.0,93336.0,0.0107109]
[1765398193484,0.15835067,93349.0,93336.0,0.39939503]
[1765398193778,0.3608,93357.0,93336.0,0.39939503]
[1765398193779,0.3608,93357.0,93349.0,0.0107094]
[1765398193983,0.3608,93372.0,93355.0,0.0107086]
[1765398194173,0.3608,93372.0,93370.0,0.0107069]
[1765398194372,0.3608,93372.0,93371.0,0.13343932]
[1765398194573,0.00016071,93380.0,93376.0,0.0107063]
[1765398194777,0.00016071,93380.0,93378.0,0.0107061]
[1765398195076,0.00016071,93380.0,93379.0,0.03859503]
[1765398195277,0.00016071,93380.0,93379.0,0.03615678]
[1765398196092,0.0107069,93371.0,93370.0,0.002]
[1765398196276,0.3715069,93371.0,93370.0,0.002]
[1765398196782,0.7715069,93371.0,93369.0,0.03225088]
[1765398196981,0.7715069,93371.0,93362.0,0.00016071]
[1765398196982,0.0107078,93363.0,93362.0,0.00016071]
[1765398197184,0.3715078,93363.0,93362.0,0.00016071]
[1765398197575,0.3608,93363.0,93348.0,0.05640043]
[1765398197775,0.3608,93349.0,93345.0,0.05640043]
[1765398197975,0.3608,93349.0,93347.0,0.05640043]
[1765398198170,0.3608,93349.0,93343.0,0.0107101]
[1765398198382,0.3608,93349.0,93324.0,0.07532165]
[1765398198383,0.7216,93349.0,93346.0,0.02812635]
[1765398198588,0.7216,93349.0,93323.0,0.3608]
[1765398198589,0.7216,93349.0,93348.0,0.002]
[1765398198881,0.7323094,93349.0,93338.0,0.00016071]
[1765398199083,0.3608,93339.0,93338.0,0.00016071]
[1765398199478,0.0107117,93329.0,93327.0,0.02812382]
[1765398199784,0.0107131,93317.0,93304.0,0.0107145]
[1765398200081,0.3608,93328.0,93320.0,0.0107127]
[1765398200381,0.0107131,93317.0,93305.0,0.0107144]
[1765398200583,0.3715131,93317.0,93304.0,0.0107146]
[1765398200793,0.3715131,93317.0,93300.0,0.010715]
[1765398200982,0.3715131,93317.0,93285.0,0.3608]
[1765398201188,0.3715131,93317.0,93285.0,0.3715167]
[1765398201483,0.3608,93317.0,93314.0,0.0107133]
[1765398201689,0.7608,93317.0,93281.0,0.3608]
[1765398201876,0.31399667,93300.0,93260.0,0.0107195]
[1765398202193,0.3608,93282.0,93275.0,0.0107179]
[1765398202383,0.0001608,93289.0,93288.0,0.0107164]
[1765398202681,0.00026102,93289.0,93263.0,0.3608]
[1765398202888,0.00026102,93289.0,93280.0,0.3608]
[1765398203089,0.36106102,93289.0,93285.0,0.0107167]
[1765398203381,0.00026102,93289.0,93285.0,0.0107167]
[1765398203582,0.00026102,93289.0,93288.0,0.003]
[1765398203889,0.0107189,93267.0,93262.0,0.3608]
[1765398204088,0.01726102,93289.0,93233.0,0.09446616]
[1765398204089,8.053e-05,93266.0,93256.0,0.01072]
[1765398204288,0.3608,93260.0,93250.0,0.0107207]
[1765398204490,0.0107191,93265.0,93249.0,0.0107208]
[1765398204676,8.053e-05,93266.0,93253.0,0.0107204]
[1765398204877,8.053e-05,93266.0,93248.0,0.010721]
[1765398205074,0.0107199,93258.0,93243.0,0.3715216]
[1765398205280,0.0107197,93259.0,93243.0,0.3608]
[1765398205482,0.0107191,93265.0,93244.0,0.0107215]
[1765398205682,8.053e-05,93266.0,93251.0,0.0107206]
[1765398205882,8.053e-05,93266.0,93256.0,0.005]
[1765398206079,8.053e-05,93266.0,93261.0,0.0107194]
[1765398206575,0.009,93260.0,93253.0,0.2608]
[1765398206792,0.009,93260.0,93253.0,0.5216]
[1765398207093,0.0001608,93270.0,93253.0,0.5216]
[1765398207283,0.08781416,93305.0,93272.0,0.0107182]
[1765398207284,0.010716,93292.0,93272.0,0.0107182]
[1765398207483,0.0107168,93285.0,93269.0,0.3608]
[1765398207781,0.0107169,93284.0,93269.0,0.3608]
[1765398207981,0.3608,93295.0,93285.0,0.0107167]
[1765398208185,0.0107157,93294.0,93279.0,0.0107173]
[1765398208493,0.0107161,93292.0,93281.0,0.0001608]
[1765398208788,0.3608,93295.0,93281.0,0.0001608]
[1765398208789,0.3608,93295.0,93282.0,0.0356863]
[1765398208996,0.0001608,93299.0,93297.0,0.0107153]
[1765398209199,0.0001608,93299.0,93298.0,0.0356863]
[1765398209690,0.3608,93317.0,93313.0,0.0107135]
[1765398209889,0.3608,93317.0,93314.0,0.0463997]
[1765398210082,0.3608,93317.0,93315.0,0.0356863]
[1765398210285,0.3608,93328.0,93321.0,0.0107125]
[1765398210478,0.3608,93338.0,93324.0,0.3715122]
[1765398210679,0.3608,93338.0,93325.0,0.0356863]
[1765398210680,0.3608,93326.0,93325.0,0.0356863]
[1765398211792,0.0107119,93327.0,93325.0,0.0356863]
[1765398211992,0.0107119,93327.0,93326.0,0.0356863]
[1765398212290,0.3608,93338.0,93337.0,0.0107108]
[1765398212481,0.3715107,93338.0,93337.0,0.0356863]
[1765398212687,0.3715107,93338.0,93324.0,0.001]
[1765398212688,0.0107122,93325.0,93324.0,0.001]
[1765398212889,0.0107122,93325.0,93324.0,0.03666336]
[1765398212890,0.3715122,93325.0,93324.0,0.03666336]
[1765398213085,0.3715122,93325.0,93324.0,0.03566336]
[1765398213697,0.3608,93325.0,93324.0,0.03566336]
[1765398213892,0.3728,93325.0,93324.0,0.03566336]
[1765398214198,0.012,93325.0,93324.0,0.03566336]
[1765398214388,0.013,93325.0,93324.0,0.04737566]
[1765398214797,0.0001608,93340.0,93339.0,0.0107106]
[1765398214998,0.0001608,93340.0,93339.0,0.3715106]
[1765398215188,0.3608,93351.0,93346.0,0.0107097]
[1765398215383,0.3608,93351.0,93346.0,0.07536941]
[1765398215384,0.0107093,93350.0,93346.0,0.07536941]
[1765398215600,0.2067493,93350.0,93344.0,0.07536941]
[1765398215809,0.55684,93350.0,93335.0,0.07536941]
[1765398216097,0.55684,93350.0,93317.0,0.5284]
[1765398216098,0.0107114,93332.0,93329.0,0.07536941]
[1765398216292,0.3608,93336.0,93324.0,0.01]
[1765398216492,0.0107113,93333.0,93326.0,0.07536941]
[1765398216801,0.3608,93336.0,93329.0,0.0107116]
[1765398217103,0.3718,93350.0,93349.0,0.0107094]
[1765398217294,0.3718,93350.0,93345.0,0.0107098]
[1765398217500,0.3718,93350.0,93349.0,0.0107094]
[1765398217501,0.011,93350.0,93349.0,0.0107094]
[1765398217691,0.3608,93381.0,93379.0,0.0107059]
[1765398217894,0.3608,93381.0,93374.0,0.0107065]
[1765398218199,0.3608,93394.0,93390.0,0.0107047]
[1765398218502,0.3608,93394.0,93386.0,0.0107051]
[1765398218689,0.3608,93406.0,93389.0,0.3608]
[1765398218890,0.00037475,93399.0,93395.0,0.0107041]
[1765398219092,0.3608,93396.0,93361.0,0.3608]
[1765398219302,0.3608,93392.0,93390.0,0.0107046]
[1765398219597,0.3608,93392.0,93390.0,0.0117046]
[1765398219799,0.3608,93392.0,93390.0,0.001]
[1765398220099,0.3608,93392.0,93383.0,0.0107055]
[1765398220396,0.3608,93384.0,93382.0,0.00016061]
[1765398220591,0.3608,93384.0,93383.0,0.0107055]
[1765398220789,0.3608,93384.0,93382.0,0.00016061]
[1765398220991,0.19604,93375.0,93345.0,0.3608]
[1765398221190,0.3608,93358.0,93346.0,0.5272]
[1765398221390,0.3608,93358.0,93354.0,0.0107088]
[1765398221597,0.3608,93356.0,93345.0,0.0107098]
[1765398221797,0.3608,93346.0,93328.0,0.0107117]
[1765398222099,0.3609607,93346.0,93344.0,0.0107099]
[1765398222304,0.0001607,93346.0,93344.0,0.0107099]
[1765398222696,0.0001607,93346.0,93344.0,0.4107099]
[1765398223312,0.0001607,93346.0,93345.0,0.013]
[1765398223704,0.3608,93355.0,93354.0,0.0107088]
[1765398223999,0.0107021,93413.0,93354.0,0.0107088]
[1765398224000,0.3608,93389.0,93371.0,0.0107069]
[1765398224191,0.3608,93389.0,93388.0,0.0107049]
[1765398224707,0.3608,93389.0,93388.0,0.03041132]
[1765398225512,4e-08,93399.0,93397.0,0.0107039]
[1765398225701,4e-08,93399.0,93398.0,0.03041132]
[1765398226810,0.00100004,93399.0,93398.0,0.03036331]
[1765398227206,0.00100004,93399.0,93398.0,0.04106711]
[1765398227398,0.00100004,93399.0,93398.0,0.04306711]
[1765398227593,0.00100004,93399.0,93398.0,0.08074679]
[1765398227907,0.00100004,93399.0,93398.0,0.08073109]
[1765398228104,0.36180004,93399.0,93398.0,0.04306711]
[1765398228292,4e-08,93399.0,93398.0,0.04606711]
[1765398228699,4e-08,93399.0,93398.0,0.08370415]
[1765398228899,4e-08,93399.0,93398.0,0.40286711]
[1765398229205,0.00016061,93408.0,93407.0,0.0107028]
[1765398229395,0.00016061,93408.0,93407.0,0.04106611]
[1765398230306,1e-08,93408.0,93407.0,0.04106611]
[1765398230613,0.3608,93428.0,93427.0,0.0107005]
[1765398230822,0.3608,93428.0,93427.0,0.04106381]
[1765398231213,0.19604,93432.0,93431.0,0.0107]
[1765398231405,0.3608,93437.0,93436.0,0.0106994]
[1765398231999,0.00016061,93441.0,93440.0,0.010699]
[1765398232406,0.00016061,93441.0,93440.0,0.04087637]
[1765398232610,0.3608,93457.0,93456.0,0.0106971]
[1765398232909,0.0106959,93467.0,93458.0,0.0106968]
[1765398233107,0.3608,93459.0,93454.0,0.0106973]
[1765398233308,0.3608,93468.0,93460.0,0.0106966]
[1765398233503,0.3608,93468.0,93466.0,0.010696]
[1765398234114,0.004,93467.0,93466.0,0.010696]
[1765398234408,0.004,93467.0,93466.0,0.040819]
[1765398234608,0.004,93467.0,93466.0,0.440819]
[1765398234811,0.0001051,93473.0,93472.0,0.0106953]
[1765398235022,0.0001051,93473.0,93472.0,0.0408183]
[1765398235316,0.0001051,93473.0,93465.0,0.3608]
[1765398235317,0.3609051,93473.0,93455.0,0.00016052]
[1765398235508,0.004,93468.0,93467.0,0.0106959]
[1765398235909,0.004,93468.0,93467.0,0.0406471]
[1765398236109,0.004,93468.0,93455.0,0.03770565]
[1765398236110,0.404,93468.0,93455.0,0.00016052]
[1765398236312,0.3714955,93471.0,93455.0,0.00016052]
[1765398236313,0.19604,93456.0,93455.0,0.00016052]
[1765398237203,0.19604,93456.0,93455.0,0.00116052]
[1765398238214,0.55684,93456.0,93455.0,0.00116052]
[1765398238514,0.3608,93464.0,93455.0,0.00516052]
[1765398238720,0.3608,93464.0,93461.0,0.0106965]
[1765398239218,0.010696,93466.0,93455.0,0.00516052]
[1765398239515,0.0106956,93470.0,93461.0,0.0106965]
[1765398239713,0.3608,93462.0,93456.0,0.0106971]
[1765398239915,0.3608,93462.0,93455.0,0.00516052]
[1765398240108,0.3608,93462.0,93459.0,0.0106967]
[1765398240303,0.010697,93458.0,93455.0,0.00516052]
[1765398240509,0.2096,93456.0,93455.0,0.00516052]
[1765398240915,0.2096,93456.0,93455.0,0.00316052]
[1765398241222,0.3608,93475.0,93472.0,0.0106953]
[1765398241407,0.3608,93475.0,93455.0,0.79495665]
[1765398241408,0.2096,93456.0,93455.0,0.00316052]
[1765398241714,0.2096,93456.0,93455.0,0.03414936]
[1765398241917,0.2096,93456.0,93455.0,0.00413923]
[1765398242120,0.2096,93456.0,93434.0,8.472e-05]
[1765398242417,0.3608,93439.0,93435.0,0.0106995]
[1765398242618,0.3608,93439.0,93434.0,8.472e-05]
[1765398242619,0.70307,93435.0,93434.0,8.472e-05]
[1765398243009,0.91267,93426.0,93425.0,0.00016052]
[1765398243215,0.91267,93426.0,93410.0,0.05614185]
[1765398243216,0.70307,93413.0,93412.0,0.03754513]
[1765398243410,0.70307,93413.0,93401.0,0.03754513]
[1765398243411,0.2096,93408.0,93401.0,0.03754513]
[1765398243606,0.3608,93402.0,93399.0,0.0107037]
[1765398244011,8.607e-05,93401.0,93399.0,0.0107037]
[1765398245204,8.607e-05,93401.0,93399.0,0.0167037]
[1765398245410,8.607e-05,93401.0,93399.0,0.05434703]
[1765398245607,0.3608,93459.0,93455.0,0.0106973]
[1765398245824,0.2096,93480.0,93465.0,0.0106961]
[1765398246112,0.2096,93456.0,93455.0,0.0106973]
[1765398246310,0.2096,93456.0,93437.0,0.0106992]
[1765398246311,0.2096,93456.0,93451.0,0.0106977]
[1765398246513,0.3608,93455.0,93454.0,0.0106974]
[1765398246720,0.2096,93456.0,93454.0,0.0106974]
[1765398247015,0.2096,93456.0,93448.0,0.010698]
[1765398247218,0.3608,93449.0,93448.0,0.010698]
[1765398247418,0.3608,93449.0,93445.0,0.0001605]
[1765398247618,0.3608,93449.0,93436.0,0.03763153]
[1765398247809,0.3608,93441.0,93433.0,0.03763153]
[1765398248005,0.3608,93441.0,93439.0,0.010699]
[1765398248418,0.3608,93441.0,93415.0,0.07526306]
[1765398248419,0.3608,93441.0,93435.0,0.03763153]
[1765398248620,0.2096,93425.0,93417.0,0.0564473]
[1765398248810,0.7216,93418.0,93417.0,0.0564473]
[1765398249011,0.7216,93418.0,93412.0,0.0001605]
[1765398249012,0.0107016,93417.0,93414.0,0.0564473]
[1765398249206,0.7216,93418.0,93412.0,0.0001605]
[1765398249412,0.7216,93418.0,93413.0,0.05659346]
[1765398249607,0.7216,93418.0,93412.0,0.0001605]
[1765398249810,0.7216,93418.0,93416.0,0.0107016]
[1765398250015,1.1216,93418.0,93417.0,0.004]
[1765398250220,0.0107032,93404.0,93402.0,0.05659346]
[1765398250425,0.2096,93400.0,93392.0,0.0107044]
[1765398250717,0.2096,93400.0,93368.0,0.52356]
[1765398250718,0.3608,93393.0,93383.0,0.0107054]
[1765398250922,0.3608,93384.0,93383.0,0.0107054]
[1765398251724,0.36096059,93393.0,93392.0,0.0107045]
[1765398252809,0.73246499,93393.0,93392.0,0.002]
[1765398253020,0.72176059,93393.0,93381.0,0.0107056]
[1765398253218,0.3608,93383.0,93376.0,0.0107062]
[1765398253419,0.2096,93375.0,93374.0,0.00016059]
[1765398253922,0.3608,93380.0,93374.0,0.00016059]
[1765398253923,0.00016059,93393.0,93392.0,0.0107045]
[1765398254124,0.00016059,93393.0,93392.0,0.40084246]
[1765398254523,0.3608,93415.0,93414.0,0.010702]
[1765398254716,0.3608,93415.0,93414.0,0.04003996]
[1765398254918,0.3608,93423.0,93414.0,0.04003996]
[1765398255220,0.0107015,93419.0,93415.0,0.02933796]
[1765398255420,0.21232,93400.0,93392.0,0.006]
[1765398255724,0.21232,93384.0,93367.0,0.07526306]
[1765398255923,0.0107083,93359.0,93356.0,0.07526306]
[1765398256125,0.3608,93357.0,93350.0,0.07526306]
[1765398256319,0.3608,93357.0,93348.0,0.07526306]
[1765398256623,0.21232,93360.0,93356.0,0.0107086]
[1765398256823,0.00016059,93364.0,93356.0,0.0107086]
[1765398257016,0.3608,93387.0,93383.0,0.0107055]
[1765398257217,0.3608,93399.0,93390.0,0.0107046]
[1765398257418,0.3608,93399.0,93374.0,0.3608]
[1765398257419,0.3608,93399.0,93396.0,0.0107039]
[1765398257623,0.0107038,93398.0,93374.0,0.3608]
[1765398257928,0.3608,93406.0,93405.0,0.010703]
[1765398258424,0.00016059,93415.0,93414.0,0.010702]
[1765398258620,9e-08,93415.0,93414.0,0.371502]
[1765398258820,9e-08,93415.0,93405.0,0.3608]
[1765398258821,9e-08,93415.0,93413.0,0.0107021]
[1765398259021,9e-08,93415.0,93411.0,0.0107022]
[1765398259522,9e-08,93415.0,93407.0,0.0107027]
[1765398259719,0.3608,93412.0,93405.0,0.3608]
[1765398260022,0.3608,93412.0,93396.0,0.00016059]
[1765398260023,0.0107025,93409.0,93396.0,0.01086449]
[1765398260522,0.3608,93411.0,93409.0,0.0107025]
[1765398260714,0.3608,93410.0,93409.0,0.02835527]
[1765398260919,0.0107025,93409.0,93407.0,0.02835527]
[1765398261120,0.0107025,93409.0,93406.0,0.02835527]
[1765398261320,0.3608,93410.0,93399.0,0.02835527]
[1765398261321,0.0107035,93401.0,93399.0,0.02835527]
[1765398261521,0.0107028,93407.0,93399.0,0.02835527]
[1765398261830,0.3608,93401.0,93399.0,0.02835527]
[1765398262031,0.0107039,93397.0,93396.0,0.00016059]
[1765398262325,0.0107038,93398.0,93396.0,0.00016059]
[1765398262533,0.3608,93397.0,93382.0,0.0107055]
[1765398262725,0.3608,93397.0,93374.0,0.07526306]
[1765398263027,0.21232,93400.0,93398.0,0.0107037]
[1765398263229,0.002,93407.0,93385.0,0.3608]
[1765398263230,0.002,93407.0,93406.0,0.0107029]
[1765398263430,0.002,93407.0,93406.0,0.3715029]
[1765398263625,0.3608,93420.0,93414.0,0.010702]
[1765398264535,0.3608,93437.0,93414.0,0.371502]
[1765398264730,0.3608,93437.0,93432.0,0.0106999]
[1765398264926,0.3714994,93437.0,93428.0,0.0107003]
[1765398265128,0.3715004,93429.0,93418.0,0.0107014]
[1765398265430,0.57312,93425.0,93414.0,0.002]
[1765398265633,0.57312,93425.0,93415.0,0.0107018]
[1765398265940,0.0107012,93421.0,93411.0,0.0107023]
[1765398266230,0.0107012,93421.0,93410.0,0.52200059]
[1765398266231,0.00016059,93429.0,93428.0,0.0107004]
[1765398266435,0.00016059,93429.0,93428.0,0.3715004]
[1765398267025,0.00016059,93429.0,93428.0,0.3608]
[1765398267225,0.0107004,93428.0,93420.0,0.3608]